fUST/lending_fUST_20251012
["ID","MTS","AMOUNT","RATE_DAILY","PERIOD"]
[391003596,1760283046391,-243.656922,0.00023013,7]
[391003597,1760283046399,-151.0,0.00023013,7]
[391003598,1760283046408,-243.656922,0.00023013,7]
[391003599,1760283046418,-243.656922,0.00023013,7]
[391003600,1760283046427,-243.656922,0.00023013,7]
[391003601,1760283046436,-151.0,0.00023013,7]
[391003602,1760283046445,-151.0,0.00023013,7]
[391003603,1760283046455,-151.0,0.00023013,7]
[391003604,1760283046463,-152.374458,0.00023013,7]
[391003605,1760283046473,-151.0,0.00023013,7]
[391003606,1760283046482,-151.0,0.00023013,7]
[391003607,1760283046492,-151.0,0.00023013,7]
[391003609,1760283046501,-151.0,0.00023013,7]
[391003610,1760283046510,-151.0,0.00023013,7]
[391003612,1760283046519,-212.945569,0.00023013,7]
[391003614,1760283046529,-151.0,0.00023013,7]
[391003616,1760283046538,-151.0,0.00023013,7]
[391003617,1760283046547,-151.0,0.00023013,7]
[391003618,1760283046556,-151.0,0.00023013,7]
[391003619,1760283046565,-2423.198958,0.00023013,7]
[391003620,1760283046575,-2423.198958,0.00023013,7]
[391003621,1760283046588,-151.0,0.00023013,7]
[391003622,1760283046597,-194.105304,0.00023013,7]
[391003623,1760283046606,-151.0,0.00023013,7]
[391003624,1760283046615,-2423.198958,0.00023013,7]
[391003625,1760283046624,-151.0,0.00023013,7]
[391003626,1760283046634,-2423.198958,0.00023013,7]
[391003627,1760283046643,-151.0,0.00023013,7]
[391003628,1760283046652,-159.37023,0.00023013,7]
[391003629,1760283046661,-151.0,0.00023013,7]
[391003630,1760283046670,-151.0,0.00023013,7]
[391003631,1760283046680,-321.776453,0.00023013,7]
[391003632,1760283046689,-321.776453,0.00023013,7]
[391003633,1760283046699,-321.776453,0.00023013,7]
[391003634,1760283046708,-321.776453,0.00023013,7]
[391003635,1760283046718,-151.0,0.00023013,7]
[391003636,1760283046727,-151.0,0.00023013,7]
[391003637,1760283046737,-151.0,0.00023013,7]
[391003638,1760283046746,-402.2877588,0.00023013,10]
[391003639,1760283046755,-260.0,0.00023031,2]
[391003640,1760283046764,-168.0,0.00023095,2]
[391003641,1760283046773,-200.0,0.000231,2]
[391003642,1760283046783,-1500.0,0.00023119,2]
[391003643,1760283046792,-600.0,0.00023127,2]
[391003644,1760283046801,-284.0,0.0002318,2]
[391003645,1760283046811,-179.65864857,0.00023182,2]
[391003646,1760283046820,-1975.96123338,0.000232,2]
[391003647,1760283046834,-500.0,0.00023273,2]
[391003648,1760283046843,-150.0,0.00023273,2]
[391003649,1760283046851,-500.0,0.00023273,2]
[391003650,1760283046861,-1500.0,0.00023287,10]
[391003651,1760283046871,-17473.62010977,0.000233,7]
[391003652,1760283046895,-13161.0,0.000233,7]
[391003653,1760283046907,-65461.67705217,0.000233,7]
[391003672,1760283078149,150.0,0.0001879,2]
[391003673,1760283078593,150.0,0.00019685,2]
[391003674,1760283079003,180.52,0.0002058,2]
[391003675,1760283118301,160.0,0.00021,2]
[391003676,1760283132442,773.81551368,0.00020975,2]
[391003677,1760283156288,205.59,0.00019089,2]
[391003678,1760283156695,411.17,0.00019998,2]
[391003679,1760283157133,616.76,0.00020908,2]
[391003680,1760283182875,7832.67448632,0.00020975,2]
[391003681,1760283182901,10000.01,0.00020975,2]
[391003682,1760283182930,7972.79830296,0.00020975,2]
[391003683,1760283212942,166.84448562,0.00020963,2]
[391003684,1760283236748,453.27,0.0001911,2]
[391003685,1760283237334,906.54,0.0002002,2]
[391003686,1760283237634,1359.81,0.0002093,2]
[391003689,1760283306119,8000.0,0.00027397,120]
[391003690,1760283316563,862.1,0.0001903,2]
[391003691,1760283317068,1724.2,0.00019937,2]
[391003692,1760283317570,2586.3,0.00020843,2]
[391003693,1760283318783,7566.42,0.00027397,120]
[391003694,1760283323395,726.937423,0.00020069,2]
[391003695,1760283345141,1004.053789,0.000208,2]
[391003696,1760283376727,7125.9596647,0.00020066,2]
[391003697,1760283398134,500.0,0.00020286,2]
[391003698,1760283400617,300.0,0.000208,2]
[391003699,1760283408349,796.27,0.00019017,2]
[391003700,1760283408759,1592.53,0.00019923,2]
[391003701,1760283409183,2388.8,0.00020828,2]
[391003702,1760283411618,300.0,0.000208,2]
[391003703,1760283423081,300.0,0.000208,2]
[391003704,1760283435867,300.0,0.000208,2]
[391003705,1760283440531,300.0,0.000208,2]
[391003706,1760283452835,9100.01,0.00020973,2]
[391003707,1760283452858,8196.64166264,0.00020973,2]
[391003708,1760283473763,905.2913134,0.00020973,2]
[391003709,1760283480183,175.76,0.00015135,2]
[391003710,1760283480458,175.76,0.00015135,2]
[391003711,1760283480723,175.76,0.00015135,2]
[391003712,1760283489316,735.46,0.00019022,2]
[391003713,1760283489737,1470.92,0.00019928,2]
[391003714,1760283490198,2206.38,0.00020834,2]
[391003715,1760283518491,238.0,0.0002,3]
[391003719,1760283568973,679.3,0.00019032,2]
[391003720,1760283569380,1358.59,0.00019938,2]
[391003721,1760283569791,2037.89,0.00020844,2]
[391003722,1760283570514,200.0,0.0002091,2]
[391003723,1760283649415,627.42,0.00019027,2]
[391003724,1760283649883,1254.85,0.00019933,2]
[391003725,1760283650312,1882.27,0.00020839,2]
[391003726,1760283712826,6235.47,0.00020973,2]
[391003727,1760283712865,5295.63110844,0.00020973,2]
[391003729,1760283729452,579.51,0.00019023,2]
[391003730,1760283729914,1159.02,0.00019929,2]
[391003731,1760283730327,1738.53,0.00020835,2]
[391003732,1760283810059,535.26,0.00019022,2]
[391003733,1760283810485,1070.52,0.00019928,2]
[391003734,1760283810915,1605.77,0.00020834,2]
[391003735,1760283814690,724.23305072,0.00020973,2]
[391003737,1760283868468,604.85090425,0.00020868,6]
[391003738,1760283875659,154.96770746,0.000209,2]
[391003739,1760283890631,494.38,0.00019029,2]
[391003740,1760283891054,988.77,0.00019935,2]
[391003741,1760283891478,1483.15,0.00020842,2]
[391003742,1760283948694,262.337852,0.00020062,2]
[391003743,1760283970441,456.63,0.00019033,2]
[391003744,1760283970980,913.26,0.00019939,2]
[391003745,1760283971303,705.88048557,0.00020845,2]
[391003746,1760283971338,664.00951443,0.00020845,2]
[391003748,1760283991594,7687.40073896,0.00020973,2]
[391003750,1760284025652,151.3777386,0.00020931,2]
[391003751,1760284050357,421.76,0.00019021,2]
[391003752,1760284050777,843.52,0.00019927,2]
[391003753,1760284051184,231.94200801,0.00020832,2]
[391003754,1760284051212,1033.33799199,0.00020832,2]
[391003755,1760284130621,389.55,0.00019022,2]
[391003756,1760284131037,779.11,0.00019928,2]
[391003757,1760284131465,1168.66,0.00020834,2]
[391003758,1760284155304,579.38644056,0.00020973,2]
[391003759,1760284156419,666.0,0.00020063,2]
[391003760,1760284203751,453.68345598,0.00019963,4]
[391003761,1760284203780,454.04576872,0.00020162,4]
[391003762,1760284205992,9092.2807753,0.00020973,2]
[391003763,1760284206020,10000.01,0.00020973,2]
[391003764,1760284206046,10000.01,0.00020973,2]
[391003765,1760284206071,10000.01,0.00020973,2]
[391003766,1760284206097,10000.01,0.00020973,2]
[391003767,1760284206122,10000.01,0.00020973,2]
[391003768,1760284206147,10000.01,0.00020973,2]
[391003769,1760284206174,10000.01,0.00020973,2]
[391003770,1760284206202,10000.01,0.00020973,2]
[391003771,1760284206228,10000.01,0.00020973,2]
[391003772,1760284206255,10000.01,0.00020973,2]
[391003773,1760284206282,10000.01,0.00020973,2]
[391003774,1760284206308,10000.01,0.00020973,2]
[391003775,1760284206336,10000.01,0.00020973,2]
[391003776,1760284206361,10000.01,0.00020973,2]
[391003777,1760284206387,10000.01,0.00020973,2]
[391003778,1760284206524,10000.01,0.00020973,2]
[391003779,1760284206551,10000.01,0.00020973,2]
[391003780,1760284206576,10000.01,0.00020973,2]
[391003781,1760284206602,10000.01,0.00020973,2]
[391003782,1760284206629,10000.01,0.00020973,2]
[391003783,1760284206653,10000.01,0.00020973,2]
[391003784,1760284206676,5993.46773395,0.00020973,2]
[391003785,1760284209755,359.81,0.00019021,2]
[391003786,1760284210186,719.61,0.00019927,2]
[391003787,1760284210624,1079.42,0.00020833,2]
[391003788,1760284226407,-151.0,0.00020975,2]
[391003789,1760284226446,-151.0,0.00020975,2]
[391003790,1760284226480,-151.0,0.00020975,2]
[391003791,1760284226521,-151.0,0.00020975,2]
[391003792,1760284226553,-151.0,0.00020975,2]
[391003793,1760284226585,-151.0,0.00020975,2]
[391003794,1760284226616,-151.0,0.00020975,2]
[391003795,1760284226647,-151.70593602,0.00020975,2]
[391003830,1760284232231,-294.93168801,0.00021,2]
[391003832,1760284232240,-200.0,0.00021,2]
[391003833,1760284232249,-458.18766646,0.00021,2]
[391003835,1760284232258,-158.17,0.00021,14]
[391003837,1760284232271,-177.67,0.00021061,2]
[391003838,1760284232281,-338.0,0.00021062,2]
[391003840,1760284232290,-300.0,0.00021062,2]
[391003841,1760284232302,-300.0,0.00021062,2]
[391003843,1760284232312,-1200.0,0.00021062,2]
[391003845,1760284232322,-172.0,0.00021062,2]
[391003846,1760284232331,-507.43,0.00021063,3]
[391003848,1760284232340,-253.71,0.00021063,3]
[391003849,1760284232350,-761.18,0.00021063,3]
[391003851,1760284232360,-3030.49,0.00021063,10]
[391003852,1760284232369,-37090.56352288,0.00021063,2]
[391003854,1760284232379,-189.71,0.00021068,2]
[391003856,1760284232387,-286.14938513,0.00021069,2]
[391003857,1760284232397,-500.0,0.0002107,2]
[391003859,1760284232407,-500.0,0.0002107,2]
[391003860,1760284232416,-500.0,0.0002107,2]
[391003862,1760284232429,-500.0,0.0002107,2]
[391003864,1760284232439,-500.0,0.0002107,2]
[391003865,1760284232448,-500.0,0.0002107,2]
[391003867,1760284232457,-500.0,0.0002107,2]
[391003868,1760284232466,-230.3701785,0.0002107,2]
[391003871,1760284232475,-500.0,0.0002107,2]
[391003873,1760284232484,-500.0,0.0002107,2]
[391003876,1760284232493,-500.0,0.0002107,2]
[391003880,1760284232505,-500.0,0.0002107,2]
[391003883,1760284232517,-500.0,0.0002107,2]
[391003885,1760284232526,-500.0,0.0002107,2]
[391003888,1760284232535,-446.9986243,0.0002107,2]
[391003890,1760284232545,-500.0,0.0002107,2]
[391003893,1760284232554,-500.0,0.0002107,2]
[391003894,1760284232563,-500.0,0.0002107,2]
[391003896,1760284232572,-500.0,0.0002107,2]
[391003898,1760284232581,-500.0,0.0002107,2]
[391003899,1760284232590,-500.0,0.0002107,2]
[391003901,1760284232600,-500.0,0.0002107,2]
[391003903,1760284232610,-198.96369053,0.0002107,2]
[391003904,1760284232619,-500.0,0.0002107,2]
[391003906,1760284232628,-500.0,0.0002107,2]
[391003908,1760284232638,-500.0,0.0002107,2]
[391003909,1760284232646,-500.0,0.0002107,2]
[391003911,1760284232655,-500.0,0.0002107,2]
[391003912,1760284232664,-500.0,0.0002107,2]
[391003914,1760284232673,-500.0,0.0002107,2]
[391003916,1760284232683,-500.0,0.0002107,2]
[391003917,1760284232692,-574.62429392,0.0002107,2]
[391003919,1760284232701,-281.37639032,0.0002107,2]
[391003921,1760284232710,-500.0,0.0002107,2]
[391003922,1760284232719,-500.0,0.0002107,2]
[391003924,1760284232728,-500.0,0.0002107,2]
[391003926,1760284232738,-500.0,0.0002107,2]
[391003927,1760284232748,-500.0,0.0002107,2]
[391003929,1760284232756,-500.0,0.00021072,2]
[391003937,1760284232872,-209.41309826,0.00021072,2]
[391003939,1760284232883,-456.57176156,0.00021072,2]
[391003941,1760284232892,-370000.0,0.00021073,2]
[391003942,1760284232901,-500.0,0.00021073,2]
[391003944,1760284232910,-500.0,0.00021073,2]
[391003946,1760284232919,-500.0,0.00021073,2]
[391003947,1760284232928,-500.0,0.00021073,2]
[391003949,1760284232938,-500.0,0.00021073,2]
[391003950,1760284232947,-500.0,0.00021073,2]
[391003952,1760284232956,-500.0,0.00021073,2]
[391003954,1760284232965,-500.0,0.00021073,2]
[391003955,1760284232974,-500.0,0.00021073,2]
[391003957,1760284232983,-413.96823109,0.00021073,2]
[391003959,1760284232992,-500.0,0.00021073,2]
[391003960,1760284233002,-500.0,0.00021073,2]
[391003962,1760284233012,-500.0,0.00021073,2]
[391003963,1760284233024,-500.0,0.00021073,2]
[391003965,1760284233034,-505.45386967,0.00021073,2]
[391003967,1760284233043,-500.0,0.00021073,2]
[391003968,1760284233053,-500.0,0.00021073,2]
[391003970,1760284233062,-500.0,0.00021073,2]
[391003972,1760284233072,-500.0,0.00021073,2]
[391003973,1760284233081,-500.0,0.00021073,2]
[391003975,1760284233091,-500.13300599,0.00021073,2]
[391003976,1760284233100,-500.0,0.00021073,2]
[391003978,1760284233110,-501.84242892,0.00021073,2]
[391003980,1760284233119,-500.0,0.00021073,2]
[391003982,1760284233129,-500.0,0.00021073,2]
[391003983,1760284233138,-500.0,0.00021073,2]
[391003985,1760284233147,-498.54572234,0.00021073,2]
[391003986,1760284233156,-500.0,0.00021073,2]
[391003988,1760284233166,-214.29508953,0.00021073,2]
[391003990,1760284233175,-150.0,0.00021175,2]
[391003992,1760284233188,-300.0,0.00021175,2]
[391003993,1760284233198,-450.0,0.00021175,2]
[391003995,1760284233207,-600.0,0.00021175,2]
[391003996,1760284233216,-750.0,0.00021175,2]
[391003998,1760284233225,-796.55177593,0.00021175,2]
[391004000,1760284233234,-1000.0,0.000213,2]
[391004001,1760284233244,-500.0,0.00021345,2]
[391004003,1760284233253,-500.0,0.00021347,2]
[391004004,1760284233262,-18603.8837,0.00021391,2]
[391004006,1760284233274,-1660.0,0.00021428,2]
[391004008,1760284233283,-1660.0,0.00021494,2]
[391004009,1760284233292,-600.0,0.00021495,20]
[391004011,1760284233302,-200.0,0.0002151,2]
[391004013,1760284233312,-1230.33,0.0002153,2]
[391004014,1760284233321,-1660.0,0.00021562,2]
[391004016,1760284233331,-526.91581643,0.000216,2]
[391004018,1760284233340,-1660.0,0.00021615,2]
[391004019,1760284233350,-500.0,0.00021619,2]
[391004021,1760284233360,-500.0,0.00021621,2]
[391004022,1760284233369,-500.0,0.00021621,2]
[391004024,1760284233378,-734.721236,0.00021621,2]
[391004026,1760284233387,-1000.0,0.00021621,2]
[391004027,1760284233397,-1000.0,0.00021621,2]
[391004029,1760284233406,-1000.0,0.00021621,2]
[391004030,1760284233416,-1000.0,0.00021621,2]
[391004031,1760284233429,-1000.0,0.00021621,2]
[391004032,1760284233439,-1000.0,0.00021621,2]
[391004033,1760284233448,-1000.0,0.00021621,2]
[391004034,1760284233458,-1001.39190621,0.00021621,2]
[391004035,1760284233467,-1000.0,0.00021621,2]
[391004036,1760284233477,-1000.0,0.00021621,2]
[391004037,1760284233486,-1000.0,0.00021621,2]
[391004038,1760284233496,-1000.0,0.00021621,2]
[391004039,1760284233507,-501.76193325,0.00021621,2]
[391004040,1760284233517,-1000.0,0.00021621,2]
[391004041,1760284233527,-500.94873512,0.00021621,2]
[391004042,1760284233537,-1000.0,0.00021621,2]
[391004043,1760284233547,-501.03087857,0.00021621,2]
[391004044,1760284233556,-502.26379303,0.00021621,2]
[391004045,1760284233566,-1000.0,0.00021621,2]
[391004046,1760284233575,-1000.0,0.00021621,2]
[391004047,1760284233585,-1660.0,0.0002163,2]
[391004048,1760284233594,-1660.0,0.00021662,2]
[391004049,1760284233603,-579.38644055,0.00021705,2]
[391004050,1760284233612,-200.0,0.0002171,2]
[391004051,1760284233621,-1439.22,0.00021738,2]
[391004052,1760284233631,-500.0,0.00021763,2]
[391004053,1760284233640,-500.0,0.00021763,2]
[391004054,1760284233650,-165.2941224,0.00021763,2]
[391004055,1760284233659,-500.0,0.00021763,2]
[391004056,1760284233669,-500.0,0.00021763,2]
[391004057,1760284233678,-500.0,0.00021763,2]
[391004058,1760284233688,-500.0,0.00021763,2]
[391004059,1760284233697,-500.0,0.00021763,2]
[391004060,1760284233707,-500.0,0.00021763,2]
[391004061,1760284233716,-500.0,0.00021763,2]
[391004062,1760284233725,-500.0,0.00021763,2]
[391004063,1760284233734,-150.0,0.00021763,2]
[391004064,1760284233744,-500.0,0.00021763,2]
[391004065,1760284233753,-500.0,0.00021763,2]
[391004066,1760284233762,-500.0,0.00021763,2]
[391004067,1760284233774,-500.0,0.00021763,2]
[391004068,1760284233783,-500.0,0.00021763,2]
[391004069,1760284233792,-500.0,0.00021763,2]
[391004070,1760284233802,-1000.0,0.000218,2]
[391004071,1760284233811,-200.0,0.0002181,2]
[391004072,1760284233821,-253.29460837,0.00021821,2]
[391004073,1760284233830,-455.93029507,0.00021821,2]
[391004074,1760284233840,-810.5427468,0.00021821,2]
[391004075,1760284233849,-1266.47304187,0.00021821,2]
[391004076,1760284233858,-221.08260329,0.00021821,2]
[391004078,1760284233868,-397.94868592,0.00021821,2]
[391004079,1760284233877,-707.46433052,0.00021821,2]
[391004080,1760284233887,-1105.41301643,0.00021821,2]
[391004081,1760284233896,-1660.0,0.00021831,2]
[391004083,1760284233905,-500.0,0.00021893,2]
[391004084,1760284233914,-332.31168212,0.00021894,2]
[391004086,1760284233923,-500.0,0.00021895,2]
[391004088,1760284233933,-300.0,0.000219,2]
[391004090,1760284233943,-200.0,0.0002191,2]
[391004092,1760284233952,-200.0,0.0002191,2]
[391004094,1760284233962,-1500.0,0.00021917,10]
[391004096,1760284233972,-19292.2273969,0.00021939,2]
[391004098,1760284233982,-1660.0,0.00021951,2]
[391004100,1760284233992,-981.0,0.00021964,2]
[391004102,1760284234001,-630.0,0.00021964,2]
[391004104,1760284234011,-2160.0,0.00021964,2]
[391004106,1760284234022,-4197.0,0.00021964,2]
[391004107,1760284234032,-19375.25716923,0.0002199,2]
[391004109,1760284234041,-37013.33927251,0.00021991,2]
[391004111,1760284234051,-1821.89745912,0.00022005,2]
[391004113,1760284234060,-1590.20294892,0.00022007,2]
[391004115,1760284234069,-450.0,0.00022037,2]
[391004117,1760284234078,-1660.0,0.0002209,2]
[391004119,1760284234088,-379.78477957,0.00022137,2]
[391004121,1760284234097,-500.0,0.00022142,8]
[391004123,1760284234106,-500.0,0.00022166,8]
[391004125,1760284234116,-500.0,0.00022167,2]
[391004127,1760284234125,-500.0,0.00022168,5]
[391004129,1760284234134,-1128.54802182,0.00022168,2]
[391004131,1760284234143,-579.37251432,0.00022168,2]
[391004133,1760284234153,-1502.02972003,0.00022168,2]
[391004135,1760284234162,-1000.0,0.00022168,2]
[391004137,1760284234171,-1500.0,0.00022168,2]
[391004139,1760284234180,-569.97150546,0.00022168,2]
[391004141,1760284234189,-500.0,0.00022168,2]
[391004143,1760284234198,-775.08535987,0.00022168,2]
[391004145,1760284234207,-506.70365145,0.00022168,2]
[391004147,1760284234216,-1500.0,0.00022168,2]
[391004149,1760284234225,-872.71606127,0.00022168,2]
[391004151,1760284234234,-1500.0,0.00022168,2]
[391004153,1760284234244,-1500.0,0.00022168,2]
[391004155,1760284234253,-1500.0,0.00022168,2]
[391004157,1760284234266,-600.0,0.00022174,2]
[391004159,1760284234275,-1500.0,0.00022191,10]
[391004161,1760284234285,-151.0,0.000222,5]
[391004163,1760284234294,-595.6439664,0.000222,2]
[391004165,1760284234303,-1660.0,0.00022206,2]
[391004167,1760284234312,-1660.0,0.00022209,2]
[391004169,1760284234321,-1660.0,0.00022225,2]
[391004171,1760284234331,-683.474,0.0002223,2]
[391004173,1760284234340,-179.565,0.0002223,2]
[391004175,1760284234351,-1660.0,0.00022256,2]
[391004177,1760284234360,-1660.0,0.00022274,2]
[391004179,1760284234369,-1000.0,0.000223,2]
[391004181,1760284234378,-150.0,0.000223,10]
[391004183,1760284234387,-1660.0,0.00022309,2]
[391004185,1760284234396,-399.92,0.0002231,2]
[391004187,1760284234406,-1000.0,0.00022311,2]
[391004189,1760284234415,-500.0,0.00022311,2]
[391004191,1760284234424,-1000.0,0.00022311,2]
[391004193,1760284234438,-1000.0,0.00022311,2]
[391004195,1760284234447,-1000.0,0.00022311,2]
[391004197,1760284234456,-1000.0,0.00022311,2]
[391004199,1760284234466,-1000.0,0.00022311,2]
[391004201,1760284234475,-1000.0,0.00022311,2]
[391004203,1760284234484,-1000.0,0.00022311,2]
[391004205,1760284234495,-228.9445435,0.00022311,2]
[391004207,1760284234505,-1000.0,0.00022311,2]
[391004209,1760284234516,-1000.0,0.00022311,2]
[391004211,1760284234525,-1000.0,0.00022311,2]
[391004213,1760284234535,-1000.0,0.00022311,2]
[391004214,1760284234544,-151.0,0.00022334,2]
[391004215,1760284234554,-151.0,0.00022334,2]
[391004216,1760284234563,-500.0,0.00022334,2]
[391004218,1760284234572,-151.0,0.00022334,2]
[391004219,1760284234582,-151.0,0.00022334,2]
[391004221,1760284234591,-500.0,0.00022334,2]
[391004223,1760284234600,-500.0,0.00022334,2]
[391004225,1760284234610,-151.0,0.00022334,2]
[391004227,1760284234619,-151.0,0.00022334,2]
[391004229,1760284234628,-151.0,0.00022334,2]
[391004230,1760284234637,-151.0,0.00022334,2]
[391004232,1760284234646,-223.19208986,0.00022334,2]
[391004235,1760284234745,-151.0,0.00022334,2]
[391004236,1760284234755,-151.0,0.00022334,2]
[391004237,1760284234766,-151.0,0.00022334,2]
[391004238,1760284234775,-151.0,0.00022334,2]
[391004239,1760284234784,-500.0,0.00022334,2]
[391004240,1760284234793,-151.0,0.00022334,2]
[391004241,1760284234803,-500.0,0.00022334,2]
[391004242,1760284234812,-151.0,0.00022334,2]
[391004243,1760284234822,-151.0,0.00022334,2]
[391004244,1760284234831,-500.0,0.00022334,2]
[391004245,1760284234840,-500.0,0.00022334,2]
[391004246,1760284234850,-500.0,0.00022334,2]
[391004247,1760284234859,-476.0,0.00022334,2]
[391004249,1760284234868,-500.0,0.00022334,2]
[391004250,1760284234877,-500.0,0.00022334,2]
[391004252,1760284234886,-500.0,0.00022334,2]
[391004254,1760284234895,-500.0,0.00022334,2]
[391004256,1760284234904,-593.41371808,0.00022382,2]
[391004258,1760284234913,-246.13625035,0.00022389,2]
[391004260,1760284234922,-500.0,0.00022389,2]
[391004262,1760284234932,-151.0,0.00022389,2]
[391004264,1760284234941,-246.07734962,0.00022389,2]
[391004266,1760284234950,-500.0,0.00022389,2]
[391004268,1760284234959,-500.0,0.00022389,2]
[391004270,1760284234968,-245.96559472,0.00022389,2]
[391004272,1760284234978,-151.0,0.00022389,2]
[391004274,1760284234987,-151.0,0.00022389,2]
[391004276,1760284234997,-151.0,0.00022389,2]
[391004278,1760284235006,-151.0,0.00022389,2]
[391004280,1760284235016,-151.0,0.00022389,2]
[391004282,1760284235025,-151.0,0.00022389,2]
[391004284,1760284235035,-151.0,0.00022389,2]
[391004286,1760284235044,-500.0,0.00022389,2]
[391004288,1760284235053,-151.40055561,0.00022389,2]
[391004290,1760284235063,-500.0,0.00022389,2]
[391004292,1760284235072,-151.0,0.00022389,2]
[391004294,1760284235081,-151.0,0.00022389,2]
[391004296,1760284235090,-500.0,0.00022389,2]
[391004298,1760284235100,-500.0,0.00022389,2]
[391004300,1760284235109,-538.29465425,0.00022389,2]
[391004302,1760284235119,-476.0,0.00022389,2]
[391004304,1760284235128,-500.0,0.00022389,2]
[391004306,1760284235138,-500.0,0.00022389,2]
[391004308,1760284235148,-572.08097716,0.00022389,2]
[391004310,1760284235158,-500.0,0.00022389,2]
[391004312,1760284235167,-4164.93273787,0.00022398,3]
[391004314,1760284235176,-1803.045339,0.000224,5]
[391004316,1760284235185,-1000.0,0.0002242,5]
[391004318,1760284235195,-1014.86,0.00022433,3]
[391004320,1760284235204,-507.42,0.00022433,3]
[391004322,1760284235213,-579.38644055,0.00022437,2]
[391004324,1760284235223,-300.0,0.00022439,20]
[391004325,1760284235232,-300.0,0.00022439,20]
[391004327,1760284235241,-300.0,0.00022439,20]
[391004330,1760284235251,-300.0,0.00022439,20]
[391004332,1760284235260,-300.0,0.00022439,20]
[391004334,1760284235272,-300.0,0.00022439,20]
[391004336,1760284235281,-300.0,0.00022439,20]
[391004337,1760284235291,-300.0,0.00022439,20]
[391004340,1760284235301,-300.0,0.00022439,20]
[391004341,1760284235310,-300.0,0.00022439,20]
[391004344,1760284235320,-300.0,0.00022439,20]
[391004345,1760284235329,-300.0,0.00022439,20]
[391004348,1760284235338,-300.0,0.00022439,20]
[391004350,1760284235348,-300.0,0.00022439,20]
[391004352,1760284235357,-300.0,0.00022439,20]
[391004353,1760284235366,-1000.0,0.0002244,5]
[391004356,1760284235376,-500.0,0.00022441,2]
[391004358,1760284235386,-500.0,0.00022442,5]
[391004360,1760284235395,-500.0,0.00022444,2]
[391004361,1760284235405,-151.0,0.00022444,2]
[391004364,1760284235415,-365.78584438,0.00022444,2]
[391004366,1760284235431,-500.0,0.00022444,2]
[391004368,1760284235441,-151.0,0.00022444,2]
[391004369,1760284235451,-151.0,0.00022444,2]
[391004372,1760284235460,-151.0,0.00022444,2]
[391004373,1760284235471,-151.0,0.00022444,2]
[391004376,1760284235481,-151.0,0.00022444,2]
[391004378,1760284235492,-245.0,0.00022444,2]
[391004380,1760284235503,-151.0,0.00022444,2]
[391004382,1760284235512,-557.0,0.00022444,2]
[391004384,1760284235523,-152.19016605,0.00022444,2]
[391004386,1760284235532,-151.0,0.00022444,2]
[391004388,1760284235541,-151.40135078,0.00022444,2]
[391004390,1760284235551,-302.0,0.00022444,2]
[391004392,1760284235561,-516.3055555,0.00022444,2]
[391004394,1760284235572,-476.0,0.00022444,2]
[391004396,1760284235581,-500.0,0.00022444,2]